bitfinex/quotes_ETHUSD_20240925
["timestamp","ask_amount","ask_price","bid_price","bid_amount"]
[1727256912271,3.84028,2630.0,2629.6,4.62211]
[1727256915477,3.84028,2630.0,2629.6,0.8193]
[1727256915766,3.80243,2629.9,2629.6,0.8193]
[1727256916152,3.84028,2630.0,2629.6,0.8193]
[1727256916525,0.038,2630.0,2629.6,4.62213]
[1727256917279,0.038,2630.0,2629.9,6.45492581]
[1727256917435,0.038,2630.0,2629.9,6.53096316]
[1727256918468,0.038,2630.0,2629.9,8.04776767]
[1727256918667,0.038,2630.0,2629.9,7.97173032]
[1727256922166,0.0381291,2630.4,2629.9,7.97173032]
[1727256922167,0.0381291,2630.4,2630.3,3.80184]
[1727256922384,0.0381291,2630.4,2630.3,8.2538639]
[1727256922674,0.0381291,2630.4,2630.3,8.17784]
[1727256922836,0.0381291,2631.2,2630.4,3.7533]
[1727256923038,0.8309291,2631.2,2631.0,3.0]
[1727256923378,0.8309291,2631.2,2630.6,4.55459]
[1727256923538,0.8309291,2631.2,2630.7,3.80122]
[1727256923872,0.8309291,2631.2,2630.7,3.80118]
[1727256925924,0.0381291,2631.2,2630.7,3.8012]
[1727256926085,0.0381291,2631.2,2630.9,3.8009]
[1727256926718,0.0381291,2631.2,2630.9,7.60177]
[1727256926890,0.0381291,2631.2,2630.9,3.80087]
[1727256927524,0.0381291,2631.2,2630.7,0.07601417]
[1727256927525,0.0381291,2631.2,2631.1,3.80069]
[1727256928927,0.0381291,2631.2,2631.1,3.87669345]
[1727256929129,0.0381291,2631.2,2631.1,3.80069]
[1727256929306,0.0381291,2631.2,2631.1,3.87669346]
[1727256929719,0.0381291,2631.2,2631.1,4.42669346]
[1727256929937,0.0381291,2631.2,2631.1,4.35069]
[1727256930297,0.0381291,2631.2,2631.1,3.80069]
[1727256930498,0.0381291,2631.2,2631.0,4.55323]
[1727256930785,0.0381291,2631.2,2630.9,3.0]
[1727256930934,3.8387591,2631.2,2630.7,3.80122]
[1727256931852,0.09954413,2631.1,2630.7,3.80122]
[1727256933153,0.09954413,2631.1,2630.7,3.80119]
[1727256934003,0.09954413,2631.1,2630.7,7.60237]
[1727256934408,0.09954413,2631.1,2630.7,3.80118]
[1727256935712,0.09954413,2631.1,2630.5,6.80149]
[1727256935914,3.90023413,2631.1,2630.6,4.35138]
[1727256936113,3.80069,2631.1,2630.6,4.35138]
[1727256936341,0.10017311,2631.0,2630.6,4.35138]
[1727256936544,0.10017311,2631.0,2630.7,3.80124]
[1727256936858,3.8386791,2631.2,2630.7,3.80124]
[1727256937056,0.10025079,2631.1,2630.7,3.80124]
[1727256938733,0.10025079,2631.1,2630.7,7.60243]
[1727256939059,0.10025079,2631.1,2630.7,3.80119]
[1727256939559,0.09840603,2631.1,2630.7,7.60238]
[1727256939759,0.09840603,2631.1,2630.9,3.80097]
[1727256939962,0.09840603,2631.1,2630.9,0.07601565]
[1727256940263,0.0381291,2631.2,2630.9,2.81831032]
[1727256940455,0.0381291,2631.2,2631.1,3.80069]
[1727256941028,0.0381291,2631.2,2631.1,8.17109]
[1727256941229,0.7843,2631.8,2631.2,6.80052]
[1727256941430,4.58405,2631.8,2631.3,4.35035]
[1727256941644,3.79991,2631.7,2631.2,3.80054]
[1727256943456,0.09679511,2631.6,2631.2,3.80054]
[1727256943976,0.09679511,2631.6,2631.2,7.601]
[1727256944482,0.09679091,2631.5,2631.2,3.80046]
[1727256944862,3.79987,2631.7,2631.2,3.80046]
[1727256945056,0.09686857,2631.6,2631.2,7.60093]
[1727256945374,0.09686857,2631.6,2631.3,3.80039]
[1727256945679,0.09686857,2631.6,2631.2,3.80046]
[1727256946173,0.05886857,2631.6,2631.3,3.80038]
[1727256946378,0.09549222,2631.6,2631.3,3.80038]
[1727256946546,4.58398,2631.8,2631.3,3.80038]
[1727256946747,0.09533211,2631.5,2631.3,3.80038]
[1727256946942,4.58398,2631.8,2631.3,3.80038]
[1727256947584,0.09548745,2631.7,2631.3,3.80038]
[1727256947947,4.58398,2631.8,2631.3,3.80038]
[1727256948249,3.89534745,2631.7,2631.2,7.60093]
[1727256948780,3.89534745,2631.7,2631.2,3.80046]
[1727256949075,3.89534745,2631.7,2631.2,7.60093]
[1727256949777,3.89534745,2631.7,2631.2,3.80046]
[1727256950379,3.89534745,2631.7,2631.2,7.60093]
[1727256951587,3.89534745,2631.7,2631.3,3.80036]
[1727256952479,0.09548745,2631.7,2631.4,3.80025]
[1727256952647,0.7843,2631.8,2631.4,3.80025]
[1727256952961,0.09555771,2631.7,2631.4,3.80025]
[1727256953376,4.58404,2631.8,2631.3,3.80039]
[1727256953571,0.09548005,2631.6,2631.3,3.80039]
[1727256953777,0.09557049,2631.7,2631.3,3.80039]
[1727256953977,0.09541514,2631.5,2631.3,3.80039]
[1727256954163,4.58404,2631.8,2631.4,3.80022]
[1727256954164,0.7843,2631.8,2631.4,3.80022]
[1727256954361,4.58398,2631.8,2631.4,3.80022]
[1727256954568,4.58398,2631.8,2631.3,4.56099]
[1727256954754,4.58398,2631.8,2631.3,8.36131]
[1727256955382,0.7843,2631.8,2631.5,3.8001]
[1727256956387,0.09557049,2631.7,2631.5,3.8001]
[1727256956757,0.7843,2631.8,2631.5,3.8001]
[1727256956958,0.09549282,2631.6,2631.5,3.8001]
[1727256957157,0.7843,2631.8,2631.5,3.8001]
[1727256957670,0.09557049,2631.7,2631.3,8.36121]
[1727256957998,0.7843,2631.8,2631.3,8.36121]
[1727256958149,0.09549282,2631.6,2631.4,3.80024]
[1727256958488,0.09541514,2631.5,2631.4,3.80024]
[1727256958666,4.58401,2631.8,2631.4,3.80024]
[1727256958866,0.09557049,2631.7,2631.4,3.80024]
[1727256959077,4.58401,2631.8,2631.4,3.80024]
[1727256959276,0.09557687,2631.7,2631.4,3.80024]
[1727256959589,4.58401,2631.8,2631.4,3.80024]
[1727256959766,0.09553114,2631.6,2631.4,3.80024]
[1727256959965,4.58401,2631.8,2631.4,3.80024]
[1727256960185,0.09545346,2631.5,2631.4,3.80024]
[1727256960394,4.58401,2631.8,2631.4,3.80024]
[1727256960581,0.09545346,2631.5,2631.4,3.80024]
[1727256960784,4.58401,2631.8,2631.4,3.80024]
[1727256961087,5.42617691,2631.8,2631.3,3.80037]
[1727256961408,0.09579122,2631.7,2631.3,3.80037]
[1727256961765,4.58401,2631.8,2631.3,3.80037]
[1727256962087,3.89567122,2631.7,2631.2,3.8005]
[1727256962910,3.89567122,2631.7,2630.8,3.801]
[1727256962911,3.8003,2631.4,2630.8,3.801]
[1727256963106,2.81669887,2631.5,2630.7,0.832]
[1727256963107,3.80071,2631.1,2630.7,3.80126]
[1727256963402,3.80064,2631.2,2630.7,3.80126]
[1727256963403,7.60132,2631.2,2630.7,3.80126]
[1727256963688,0.09542143,2631.1,2630.9,0.39596911]
[1727256964199,0.09542143,2631.1,2630.7,3.80126]
[1727256964490,0.09542143,2631.1,2630.8,3.80109]
[1727256967956,0.09542143,2631.1,2630.7,3.80124]
[1727256968188,0.09542143,2631.1,2630.8,0.39686979]
[1727256968356,0.09542143,2631.1,2630.6,1.94428828]
[1727256968357,3.89622143,2631.1,2630.9,0.39686979]
[1727256968556,3.89622143,2631.1,2630.7,3.80123]
[1727256968757,3.89622143,2631.1,2630.8,0.3969422]
[1727256969021,3.89622143,2631.1,2630.9,0.3969422]
[1727256969165,3.89622143,2631.1,2630.7,5.19583101]
[1727256969366,3.89622143,2631.1,2630.8,0.39692386]
[1727256969699,3.89622143,2631.1,2630.9,0.39692386]
[1727256970005,3.89622143,2631.1,2630.7,5.19583101]
[1727256970395,3.89622143,2631.1,2630.9,0.39690928]
[1727256970694,3.89622143,2631.1,2630.8,0.39690928]
[1727256970903,3.89622143,2631.1,2630.9,0.3969392]
[1727256971198,3.89622143,2631.1,2630.7,5.19583101]
[1727256971405,3.89622143,2631.1,2630.8,0.39694467]
[1727256971566,3.89622143,2631.1,2630.9,0.39694467]
[1727256971767,3.89622143,2631.1,2630.7,5.19583101]
[1727256972128,3.89622143,2631.1,2630.8,0.39694616]
[1727256972680,3.89620143,2631.1,2630.8,0.39694616]
[1727256973001,3.89620143,2631.1,2630.6,7.35139]
[1727256973306,3.89620143,2631.1,2630.7,0.92981686]
[1727256973463,7.69698143,2631.1,2630.6,7.35139]
[1727256973660,7.69698143,2631.1,2630.7,0.9297827]
[1727256973860,3.89620143,2631.1,2630.6,7.35139]
[1727256974067,3.89620143,2631.1,2630.7,0.92978507]
[1727256974275,3.89620143,2631.1,2630.7,0.39695142]
[1727256974607,3.89620143,2631.1,2630.6,8.74606458]
[1727256974903,3.89620143,2631.1,2630.7,0.92978934]
[1727256976205,3.89620143,2631.1,2630.6,7.35139]
[1727256976499,3.89620143,2631.1,2630.7,2.32494496]
[1727256976711,3.89620143,2631.1,2630.7,5.19622944]
[1727256977206,0.09542143,2631.1,2630.7,5.19622944]
[1727256977420,0.09542143,2631.1,2631.0,3.80083]
[1727256977580,3.80026,2631.4,2631.0,3.80083]
[1727256978298,0.08855196,2631.3,2631.0,3.80083]
[1727256978487,0.08855196,2631.3,2631.0,7.60156]
[1727256978718,4.56622,2631.5,2631.0,7.67756642]
[1727256978885,0.08862964,2631.4,2631.0,7.67756642]
[1727256979494,0.08862964,2631.4,2631.0,3.87673642]
[1727256979671,0.08862964,2631.4,2631.1,3.80066]
[1727256980385,0.08862964,2631.4,2631.0,3.80081]
[1727256981374,0.08862964,2631.4,2631.0,5.19592664]
[1727256981589,0.08862964,2631.4,2631.0,3.80081]
[1727256981829,0.08862964,2631.4,2631.0,5.19592909]
[1727256981996,0.08862964,2631.4,2631.0,3.80081]
[1727256982329,0.08862964,2631.4,2631.0,5.19596747]
[1727256983198,0.08862964,2631.4,2631.1,0.07600644]
[1727256983414,0.08862964,2631.4,2631.2,0.7609]
[1727256983621,0.08862964,2631.4,2631.2,4.5614]
[1727256983824,3.79996,2631.6,2631.2,4.63740277]
[1727256984331,0.08513785,2631.5,2631.2,4.5614]
[1727256984524,0.08513785,2631.5,2631.2,4.63740238]
[1727256985491,7.59975,2631.7,2631.2,4.63740238]
[1727256985760,0.08521552,2631.6,2631.2,4.63740238]
[1727256986709,0.08521552,2631.6,2631.2,0.7609]
[1727256986908,3.80019,2631.5,2631.0,5.96076562]
[1727256987123,0.08516877,2631.4,2631.0,4.56533]
[1727256987327,0.08516877,2631.4,2631.0,5.9608175]
[1727256987634,3.80019,2631.5,2631.0,5.9608175]
[1727256987806,0.7593,2631.4,2631.0,5.9608175]
[1727256988005,4.64472877,2631.4,2631.0,5.9608175]
[1727256988203,4.55956,2631.4,2631.0,5.96085885]
[1727256988532,0.08511985,2631.3,2631.0,5.96085885]
[1727256989060,0.08511985,2631.3,2631.0,1.39552885]
[1727256989343,3.88552985,2631.3,2630.9,3.80088]
[1727256989761,3.88552985,2631.3,2630.9,5.19661826]
[1727256990454,0.08511985,2631.3,2631.0,0.93046909]
[1727256990748,0.08511985,2631.3,2630.9,3.80088]
[1727256990923,0.08511985,2631.3,2630.9,5.19660984]
[1727256991258,0.08511985,2631.3,2630.9,8.99749984]
[1727256991556,0.08511985,2631.3,2630.9,5.19660984]
[1727256992243,0.08511985,2631.3,2630.9,5.19663762]
[1727256992777,3.88554985,2631.3,2630.9,5.19663762]
[1727256993313,3.88554985,2631.3,2631.0,0.93052564]
[1727256993661,3.88554985,2631.3,2630.9,5.19667572]
[1727256993953,3.88554985,2631.3,2630.9,8.99757572]
[1727256994158,3.88554985,2631.3,2630.9,5.19667572]
[1727256994534,3.88554985,2631.3,2630.9,3.80088]
[1727256994864,3.88554985,2631.3,2631.0,0.63565047]
[1727256995449,0.7928,2631.2,2630.9,1.39585693]
[1727256995639,0.7928,2631.2,2630.7,6.07267048]
[1727256995953,4.59344,2631.2,2630.8,1.56644686]
[1727256996165,8.39411,2631.2,2630.7,3.87725533]
[1727256996320,0.08445267,2631.1,2630.8,1.56651228]
[1727256996522,0.08445267,2631.1,2630.7,3.87725533]
[1727256996725,0.08445267,2631.1,2630.8,1.56677196]
[1727256997041,0.08445267,2631.1,2630.8,1.39635132]
[1727256997347,0.08445267,2631.1,2630.7,3.87725533]
[1727256997661,3.88515267,2631.1,2630.8,0.63589176]
[1727256997856,3.8007,2631.1,2630.7,3.87725533]
[1727256998062,0.08437498,2631.0,2630.8,1.56685487]
[1727256998223,0.08437498,2631.0,2630.7,3.87725533]
[1727256998425,0.08437498,2631.0,2630.8,0.93095347]
[1727256998627,3.8007,2631.1,2630.7,3.87725533]
[1727256998828,0.08429727,2630.9,2630.8,3.80112]
[1727256999195,0.08429727,2630.9,2630.8,0.93096183]
[1727256999365,4.59344,2631.2,2630.8,0.93096183]
[1727256999527,0.08429727,2630.9,2630.7,3.87725533]
[1727256999856,8.39407,2631.2,2630.7,3.87725533]
[1727257000059,0.08421956,2630.8,2630.7,3.87725533]
[1727257000251,8.39407,2631.2,2630.7,6.20480037]
[1727257000448,4.59343,2631.2,2630.8,0.93101687]
[1727257000655,0.08445267,2631.1,2630.8,3.80105]
[1727257001165,0.08445267,2631.1,2630.8,5.19756483]
[1727257001362,0.08445267,2631.1,2630.8,3.87706164]
[1727257001569,0.08445267,2631.1,2630.8,5.27361496]
[1727257001874,4.59343,2631.2,2630.8,3.87706164]
[1727257002031,0.08431108,2631.0,2630.8,3.80105]
[1727257002364,0.08423337,2630.9,2630.8,3.80105]
[1727257002565,0.08423337,2630.9,2630.8,6.12888098]
[1727257002749,4.59343,2631.2,2630.8,6.12888098]
[1727257002960,4.59343,2631.2,2630.8,3.80105]
[1727257003158,0.08440474,2631.1,2630.8,3.80105]
[1727257003340,0.08440474,2631.1,2630.8,3.87706167]
[1727257003545,0.08440474,2631.1,2630.9,4.5762]
[1727257003954,3.80045,2631.3,2630.9,4.5762]
[1727257004144,0.08433024,2631.0,2630.9,4.5762]
[1727257004340,3.80045,2631.3,2630.9,1.70685202]
[1727257004664,0.08448563,2631.2,2630.9,0.7753]
[1727257004970,7.60097,2631.3,2630.9,0.7753]
[1727257005168,0.08440794,2631.1,2630.9,0.7753]
[1727257005370,7.60097,2631.3,2630.9,0.7753]
[1727257005573,0.08433024,2631.0,2630.9,0.7753]
[1727257005869,3.80045,2631.3,2630.9,6.90530365]
[1727257006069,0.08433024,2631.0,2630.9,4.57628]
[1727257006369,0.08433024,2631.0,2630.9,6.905309]
[1727257006577,3.80045,2631.3,2630.9,6.905309]
[1727257006735,0.08434621,2631.0,2630.9,4.57628]
[1727257006936,7.60093,2631.3,2630.9,6.90535306]
[1727257007155,0.0845016,2631.2,2630.9,4.57628]
[1727257007666,3.80045,2631.3,2630.9,4.57628]
[1727257007874,0.08442391,2631.1,2630.9,4.57628]
[1727257008048,3.80045,2631.3,2631.0,0.93198552]
[1727257008251,3.80045,2631.3,2630.9,4.57628]
[1727257008430,3.80045,2631.3,2631.0,0.93198576]
[1727257008635,7.60095,2631.3,2630.9,0.7753]
[1727257008836,0.7848,2631.4,2631.0,0.93198566]
[1727257009137,3.80048,2631.3,2630.9,4.57627]
[1727257009359,3.80048,2631.3,2631.0,0.93198147]
[1727257009529,3.80048,2631.3,2630.9,4.57627]
[1727257009735,3.80048,2631.3,2631.0,0.93198214]
[1727257010034,3.80048,2631.3,2630.9,4.57627]
[1727257010264,3.80048,2631.3,2631.0,0.93200671]
[1727257010465,3.80048,2631.3,2630.9,4.57627]
[1727257010673,3.80048,2631.3,2631.0,0.93200692]
[1727257010968,3.80048,2631.3,2630.9,4.57627]
[1727257011177,3.80048,2631.3,2631.0,0.93200703]
[1727257011346,3.80048,2631.3,2630.9,4.57627]
[1727257011533,3.80048,2631.3,2631.0,0.9320252]
[1727257011737,3.80048,2631.3,2630.9,4.57627]
[1727257011937,3.80048,2631.3,2631.0,0.93202511]
[1727257012173,7.60097,2631.3,2630.9,4.57627]
[1727257012474,3.80057,2631.2,2631.0,0.93204387]
[1727257012679,3.80057,2631.2,2630.8,4.67655079]
[1727257012984,3.80057,2631.2,2630.9,2.33011025]
[1727257013273,3.80057,2631.2,2631.0,0.9320441]
[1727257013569,3.80057,2631.2,2630.8,4.67655079]
[1727257013821,3.80048,2631.3,2630.9,2.33015865]
[1727257013941,3.80048,2631.3,2631.0,0.93206346]
[1727257014138,4.58508,2631.4,2631.1,0.93208179]
[1727257014339,4.58508,2631.4,2631.0,3.87676704]
[1727257014537,4.58508,2631.4,2631.1,2.33007876]
[1727257014779,4.58508,2631.4,2631.0,5.43859687]
[1727257014941,4.58508,2631.4,2631.1,2.33002349]
[1727257015298,0.7848,2631.4,2631.0,4.63921704]
[1727257015460,0.7848,2631.4,2631.1,2.33011228]
[1727257015670,0.7848,2631.4,2631.0,4.63921704]
[1727257015849,0.7848,2631.4,2631.1,2.33011235]
[1727257016035,0.7848,2631.4,2631.0,4.63921704]
[1727257016239,0.7848,2631.4,2631.1,6.13076078]
[1727257016553,0.7848,2631.4,2631.0,4.63921704]
[1727257016754,0.7848,2631.4,2631.1,2.3301298]
[1727257017077,0.7848,2631.4,2631.0,4.63802729]
[1727257017284,0.7848,2631.4,2631.1,2.33015103]
[1727257017576,0.7848,2631.4,2631.0,4.63802729]
[1727257017779,0.7848,2631.4,2631.1,2.33015132]
[1727257017964,0.7848,2631.4,2631.0,4.63802729]
[1727257018162,0.7848,2631.4,2631.1,2.3301401]
[1727257018368,0.08449602,2631.3,2631.0,4.63802729]
[1727257018678,0.08449602,2631.3,2631.1,2.33017607]
[1727257018879,0.08449602,2631.3,2631.0,4.63802729]
[1727257019121,0.08449602,2631.3,2631.1,2.33017222]
[1727257019264,0.08449602,2631.3,2631.0,5.43745712]
[1727257019467,0.08449602,2631.3,2631.1,2.33020801]
[1727257019667,0.08449602,2631.3,2631.0,5.43745712]
[1727257019892,0.08449602,2631.3,2631.1,2.33020775]
[1727257020092,0.08449602,2631.3,2631.1,3.80068]
[1727257020806,0.08449602,2631.3,2631.0,5.43745712]
[1727257021015,0.08449602,2631.3,2631.1,6.13090008]
[1727257021179,0.08449602,2631.3,2631.1,3.80067]
[1727257022836,0.08449602,2631.3,2631.0,5.36264983]
[1727257023111,0.08449602,2631.3,2631.1,2.33033271]
[1727257023312,4.57557,2631.1,2630.9,0.79942983]
[1727257023500,4.57557,2631.1,2630.8,0.79942983]
[1727257023668,0.08480419,2631.0,2630.9,0.93223218]
[1727257024476,0.08480419,2631.0,2630.9,2.33051799]
[1727257025274,0.08480419,2631.0,2630.9,0.93223218]
[1727257026487,0.08480419,2631.0,2630.9,2.33048042]
[1727257027120,0.08480419,2631.0,2630.9,0.93223218]
[1727257029211,0.08480419,2631.0,2630.9,0.93216051]
[1727257029379,0.08480419,2631.0,2630.7,4.60068983]
[1727257029586,4.57549,2631.1,2630.8,2.33040593]
[1727257029884,4.57549,2631.1,2630.7,4.60068983]
[1727257030090,0.08455735,2631.0,2630.8,2.33040223]
[1727257030280,0.08455735,2631.0,2630.7,4.60068983]
[1727257030281,4.57549,2631.1,2630.9,0.93218604]
[1727257030483,5.413087,2631.1,2630.7,4.60068983]
[1727257030800,4.57549,2631.1,2630.8,2.33046753]
[1727257031009,4.57549,2631.1,2630.9,0.93218701]
[1727257031214,4.57549,2631.1,2630.7,4.60068983]
[1727257031416,0.08477115,2631.0,2630.8,2.33055181]
[1727257031730,4.57549,2631.1,2630.9,0.93222396]
[1727257031904,4.57549,2631.1,2630.7,4.60068983]
[1727257032098,4.57549,2631.1,2630.8,2.33051812]
[1727257032422,4.57549,2631.1,2630.9,0.93220725]
[1727257032622,4.57549,2631.1,2630.7,4.60068983]
[1727257032922,4.57549,2631.1,2630.8,2.33067601]
[1727257033117,4.57549,2631.1,2630.9,2.33071232]
[1727257033366,4.57549,2631.1,2630.7,4.60068983]
[1727257033548,4.57549,2631.1,2630.8,2.33077276]
[1727257033824,4.57549,2631.1,2630.9,0.9323091]
[1727257034019,4.57549,2631.1,2630.7,4.60068983]
[1727257034351,4.57549,2631.1,2630.8,2.33087273]
[1727257034488,4.57549,2631.1,2630.9,0.93234909]
[1727257034703,4.57549,2631.1,2630.7,4.60068983]
[1727257034987,4.57549,2631.1,2630.8,2.33086218]
[1727257035188,0.08486176,2631.0,2630.9,0.93234487]
[1727257035623,0.08486176,2631.0,2630.9,1.33042458]
[1727257036495,0.08486176,2631.0,2630.9,2.72897522]
[1727257036993,0.08486176,2631.0,2630.9,2.33089551]
[1727257037862,0.08486176,2631.0,2630.9,2.33089412]
[1727257038131,0.08486176,2631.0,2630.9,0.93237279]
[1727257040505,0.08486176,2631.0,2630.9,2.33095843]
[1727257040831,0.08486176,2631.0,2630.9,0.93237279]
[1727257041196,0.08486176,2631.0,2630.9,2.33096316]
[1727257042195,0.08486176,2631.0,2630.9,2.33096751]
[1727257042726,0.08486176,2631.0,2630.9,2.3309658]
[1727257043029,0.08486176,2631.0,2630.9,2.33096465]
[1727257043330,0.08486176,2631.0,2630.9,2.33096862]
[1727257043896,0.08486176,2631.0,2630.9,0.93238586]
[1727257044537,0.08486176,2631.0,2630.9,2.33097]
[1727257045028,0.08486176,2631.0,2630.9,6.13195]
[1727257045231,0.08486176,2631.0,2630.9,7.81949164]
[1727257045434,4.59314,2631.4,2630.9,7.81949164]
[1727257045606,4.59314,2631.4,2631.0,2.33097]
[1727257045940,4.59314,2631.4,2631.0,3.80079]
[1727257046146,4.59314,2631.4,2631.1,0.93233706]
[1727257046435,3.80044,2631.3,2630.9,5.41250983]
[1727257046635,8.39352,2631.4,2631.0,2.33086866]
[1727257046835,8.39352,2631.4,2631.1,0.93234188]
[1727257047000,4.59314,2631.4,2630.9,9.21339983]
[1727257047200,4.59314,2631.4,2631.0,2.330811]
[1727257047532,4.59314,2631.4,2631.1,0.9323244]
[1727257047737,4.59314,2631.4,2630.9,9.21339983]
[1727257047956,4.59314,2631.4,2631.0,2.33081915]
[1727257048230,4.59314,2631.4,2630.9,9.21339983]
[1727257048539,4.59314,2631.4,2631.0,2.33083318]
[1727257048832,4.59314,2631.4,2631.1,0.93233327]
[1727257049034,0.08321259,2631.3,2630.9,9.21327983]
[1727257049236,0.08321259,2631.3,2631.0,2.33080633]
[1727257049436,0.08321259,2631.3,2630.9,9.21327983]
[1727257049626,0.08321259,2631.3,2631.0,2.33082695]
[1727257049827,0.08321259,2631.3,2630.9,9.21327983]
[1727257050027,0.08321259,2631.3,2631.0,2.33079289]
[1727257050245,0.08321259,2631.3,2631.1,0.93231709]
[1727257050437,0.08321259,2631.3,2630.9,9.21327983]
[1727257050646,3.88364259,2631.3,2631.0,2.33077115]
[1727257050818,0.08321259,2631.3,2631.1,0.93231567]
[1727257051013,0.08321259,2631.3,2630.9,8.41383]
[1727257051312,0.08321259,2631.3,2631.0,2.33082497]
[1727257051514,0.08321259,2631.3,2630.9,4.61296]
[1727257051710,0.08321259,2631.3,2631.0,0.93233908]
[1727257051936,8.39348,2631.4,2630.9,3.80086]
[1727257052112,3.8005,2631.3,2631.0,2.33081233]
[1727257052315,3.88371259,2631.3,2630.9,4.60028983]
[1727257052557,3.88371259,2631.3,2631.0,2.33080563]
[1727257052853,3.88371259,2631.3,2630.9,0.79942983]
[1727257053067,3.88371259,2631.3,2631.0,2.3308127]
[1727257053279,0.08321259,2631.3,2630.8,4.60052983]
[1727257053568,3.80054,2631.2,2630.9,2.3308602]
[1727257053803,3.80054,2631.2,2631.0,0.93234408]
[1727257053982,4.67654724,2631.1,2630.8,0.79942983]
[1727257054137,4.67654724,2631.1,2630.9,2.33088859]
[1727257054330,4.67654724,2631.1,2630.7,5.40811983]
[1727257054567,4.67654724,2631.1,2630.8,3.1303044]
[1727257054863,4.67654724,2631.1,2630.9,2.33087068]
[1727257055065,0.87585724,2631.1,2630.8,0.79942983]
[1727257055271,4.67661724,2631.1,2630.9,0.93233332]
[1727257055431,4.67661724,2631.1,2630.7,5.40811983]
[1727257055635,4.67661724,2631.1,2630.8,2.33087625]
[1727257055859,4.67661724,2631.1,2630.9,0.9323505]
[1727257056032,4.67661724,2631.1,2630.7,5.40811983]
[1727257056236,4.67661724,2631.1,2630.8,2.33085456]
[1727257056481,4.67661724,2631.1,2630.9,0.93234182]
[1727257056771,4.67661724,2631.1,2630.7,5.40811983]
[1727257056974,4.67661724,2631.1,2630.8,2.33084395]
[1727257057157,4.67661724,2631.1,2630.9,0.93233758]
[1727257057368,4.67661724,2631.1,2630.7,5.40811983]
[1727257057574,4.59356,2631.1,2630.8,2.33084627]
[1727257057778,4.59356,2631.1,2630.9,0.93233851]
[1727257058068,0.08290929,2631.0,2630.7,5.40811983]
[1727257058264,0.08290929,2631.0,2630.8,2.33081861]
[1727257058471,0.08290929,2631.0,2630.9,1.56922591]
[1727257058674,0.08290929,2631.0,2630.9,2.96769399]
[1727257058884,0.08290929,2631.0,2630.9,1.56922591]
[1727257060454,0.08290929,2631.0,2630.9,1.56923507]
[1727257060984,0.08290929,2631.0,2630.9,1.56922933]
[1727257062479,0.08290929,2631.0,2630.9,1.56927545]
[1727257063050,0.7926,2630.9,2630.3,0.79942983]
[1727257063273,4.59426,2630.5,2630.4,0.63702474]
[1727257063445,4.59426,2630.5,2630.2,1.39398702]
[1727257063649,4.59426,2630.5,2630.1,0.79942983]
[1727257063650,8.47847812,2630.5,2630.3,0.63683576]
[1727257063847,5.39143434,2630.5,2630.0,4.64169983]
[1727257064052,4.67675812,2630.5,2630.1,2.32340206]
[1727257064252,4.67675812,2630.5,2630.0,3.84227]
[1727257064565,4.67675812,2630.5,2630.1,2.95915632]
[1727257064762,5.65455902,2630.5,2630.1,0.63685797]
[1727257064960,0.7928,2630.3,2630.1,0.63685797]
[1727257065274,0.08215078,2630.2,2630.1,0.63685797]
[1727257065586,0.7928,2630.3,2630.2,0.63685797]
[1727257065798,0.7928,2630.3,2630.0,0.04]
[1727257066086,0.7928,2630.3,2630.0,3.84227]
[1727257066288,0.08155758,2630.2,2630.0,4.60677]
[1727257066491,4.59446,2630.5,2630.0,4.60677]
[1727257066666,0.08145139,2630.1,2630.0,4.60677]
[1727257066986,4.59446,2630.5,2630.0,4.60677]
[1727257067488,3.88360326,2630.4,2630.0,0.8045]
[1727257077513,0.08189326,2630.4,2630.0,4.6067]
[1727257079175,0.08189326,2630.4,2630.1,3.8021]
[1727257079376,0.08189326,2630.4,2630.0,4.60676]
[1727257080604,0.08189326,2630.4,2630.0,4.60671]
[1727257082669,3.88359326,2630.4,2630.0,4.60671]
[1727257082869,0.08189326,2630.4,2630.1,3.87807832]
[1727257083086,0.7852,2630.7,2630.3,4.58874]
[1727257084984,0.7852,2630.7,2630.3,0.7869]
[1727257085216,4.58654,2630.7,2630.3,0.7869]
[1727257085375,3.80144,2630.6,2630.1,4.62667]
[1727257085578,4.59471,2630.3,2630.0,0.04]
[1727257085915,3.80201,2630.2,2630.0,0.04]
[1727257086679,0.08018415,2630.1,2630.0,0.04]
[1727257086883,3.88231415,2630.1,2630.0,0.04]
[1727257087084,4.64241415,2630.1,2630.0,0.04]
[1727257087335,5.61684465,2630.1,2630.0,0.04]
[1727257091027,5.61684465,2630.1,2630.0,0.04]
[1727257102350,0.08018415,2630.1,2630.0,0.04]
[1727257103910,0.08018415,2630.1,2630.0,3.84228]
[1727257104106,3.80171,2630.4,2630.0,3.84228]
[1727257104446,7.60349,2630.4,2630.0,3.84228]
[1727257104741,0.07985785,2630.3,2630.0,0.04]
[1727257105276,3.88172785,2630.3,2630.0,0.04]
[1727257112765,0.07985785,2630.3,2630.0,0.04]
[1727257112930,3.802,2630.2,2630.0,0.04]
[1727257113139,3.88194015,2630.2,2630.0,0.04]
[1727257115748,7.68401015,2630.2,2630.0,0.04]
[1727257115956,3.80213,2630.1,2630.0,0.04]
[1727257116268,3.88071564,2630.1,2630.0,0.04]
[1727257118242,0.07858564,2630.1,2630.0,0.04]
[1727257118572,3.802,2630.2,2630.0,0.04]
[1727257118980,0.07858564,2630.1,2630.0,0.04]
[1727257119474,0.07858564,2630.1,2630.0,0.43761467]
[1727257121287,3.88071564,2630.1,2630.0,0.43761467]
[1727257121573,3.88071564,2630.1,2630.0,0.43763113]
[1727257121783,3.88071564,2630.1,2630.0,0.43763149]
[1727257122126,3.88071564,2630.1,2630.0,0.04]
[1727257122977,4.7253972,2630.1,2630.0,0.04]
[1727257125685,3.88071564,2630.1,2630.0,0.04]
[1727257125893,3.88071564,2630.1,2630.0,0.43767897]
[1727257126396,3.88071564,2630.1,2630.0,0.04]
[1727257128195,3.88071564,2630.1,2630.0,5.92286088]
[1727257128196,0.07858564,2630.1,2630.0,5.92286088]
[1727257128376,0.07858564,2630.1,2630.0,13.57116331]
[1727257128594,4.58566,2630.9,2630.3,3.80179]
[1727257128745,4.58566,2630.9,2630.4,0.39770949]
[1727257128952,0.06803686,2630.8,2630.3,3.80177]
[1727257129307,0.06803686,2630.8,2630.5,0.39766665]
[1727257129669,0.06803686,2630.8,2630.4,0.8001]
[1727257129879,0.06803686,2630.8,2630.5,0.39764995]
[1727257130250,0.06803686,2630.8,2630.4,0.8001]